[Event "*** Titled Tuesday Blitz"]
[Site "Chess.com"]
[Date "2019.06.04"]
[Round "8"]
[White "ENEASZ"]
[Black "MarcoRiehle"]
[Result "0-1"]
[WhiteElo "2503"]
[BlackElo "2535"]
[TimeControl "180+2"]
[EndTime "14:47:08 PDT"]
[Termination "MarcoRiehle won by resignation"]

1. e4 {[%clk 0:03:01.9]} 1... e5 {[%clk 0:03:00.8]} 2. Nf3 {[%clk 0:03:02.6]}
2... Nf6 {[%clk 0:03:02.2]} 3. Nxe5 {[%clk 0:03:02.7]} 3... Nxe4 {[%clk
0:03:02.7]} 4. Qe2 {[%clk 0:03:03.2]} 4... Qe7 {[%clk 0:03:03.1]} 5. Qxe4 {[%clk
0:03:04.1]} 5... d6 {[%clk 0:03:00.3]} 6. d4 {[%clk 0:03:05.2]} 6... dxe5 {[%clk
0:03:01.6]} 7. Qxe5 {[%clk 0:03:05.4]} 7... Qxe5+ {[%clk 0:03:02.1]} 8. dxe5
{[%clk 0:03:07.3]} 8... Bf5 {[%clk 0:03:03.4]} 9. Nc3 {[%clk 0:03:03.8]} 9...
Nc6 {[%clk 0:03:04.1]} 10. Bg5 {[%clk 0:02:45.6]} 10... h6 {[%clk 0:02:34.2]}
11. Bh4 {[%clk 0:02:45.5]} 11... g5 {[%clk 0:02:32.1]} 12. Bg3 {[%clk
0:02:46.2]} 12... O-O-O {[%clk 0:02:31.9]} 13. Bd3 {[%clk 0:02:27.7]} 13... Bxd3
{[%clk 0:02:24.8]} 14. cxd3 {[%clk 0:02:29.6]} 14... Rxd3 {[%clk 0:02:21.5]} 15.
Ke2 {[%clk 0:02:30.6]} 15... Rd8 {[%clk 0:02:15.5]} 16. Rhd1 {[%clk 0:02:30.7]}
16... Re8 {[%clk 0:02:10]} 17. Nd5 {[%clk 0:02:08]} 17... Bg7 {[%clk 0:02:03.8]}
18. Rac1 {[%clk 0:02:04.6]} 18... Bxe5 {[%clk 0:01:58]} 19. Bxe5 {[%clk
0:01:59.6]} 19... Rxe5+ {[%clk 0:01:59.9]} 20. Kf1 {[%clk 0:01:57.5]} 20... Rd8
{[%clk 0:01:55.1]} 21. Ne3 {[%clk 0:01:58.4]} 21... Rxd1+ {[%clk 0:01:50.5]} 22.
Rxd1 {[%clk 0:02:00.3]} 22... f5 {[%clk 0:01:51.3]} 23. g3 {[%clk 0:02:01]}
23... f4 {[%clk 0:01:50.1]} 24. gxf4 {[%clk 0:02:01.9]} 24... gxf4 {[%clk
0:01:52]} 25. Ng4 {[%clk 0:02:03.3]} 25... Re6 {[%clk 0:01:45.3]} 26. Rd5 {[%clk
0:01:58]} 26... f3 {[%clk 0:01:35.2]} 27. a3 {[%clk 0:01:46.3]} 27... a5 {[%clk
0:01:30.3]} 28. h4 {[%clk 0:01:41.5]} 28... Re4 {[%clk 0:01:26.9]} 29. Nxh6
{[%clk 0:01:42.6]} 29... Rxh4 {[%clk 0:01:24.5]} 0-1

[Event "*** Titled Tuesday Blitz"]
[Site "Chess.com"]
[Date "2019.06.04"]
[Round "8"]
[White "Saitama_Hero"]
[Black "BvsN"]
[Result "1-0"]
[WhiteElo "2445"]
[BlackElo "2281"]
[TimeControl "180+2"]
[EndTime "14:47:12 PDT"]
[Termination "Saitama_Hero won by resignation"]

1. d4 {[%clk 0:03:01.9]} 1... d5 {[%clk 0:03:00.1]} 2. c4 {[%clk 0:03:03.3]}
2... c6 {[%clk 0:03:00.4]} 3. cxd5 {[%clk 0:03:04.9]} 3... cxd5 {[%clk
0:03:00.8]} 4. Nc3 {[%clk 0:03:06.7]} 4... Nf6 {[%clk 0:03:01.4]} 5. f3 {[%clk
0:03:08.3]} 5... Nc6 {[%clk 0:02:59]} 6. e4 {[%clk 0:03:09.6]} 6... dxe4 {[%clk
0:02:46.1]} 7. d5 {[%clk 0:03:11.5]} 7... Ne5 {[%clk 0:02:44.8]} 8. fxe4 {[%clk
0:03:12.4]} 8... e6 {[%clk 0:02:31.2]} 9. Nf3 {[%clk 0:03:13.3]} 9... Nxf3+
{[%clk 0:02:30.3]} 10. Qxf3 {[%clk 0:03:15.2]} 10... exd5 {[%clk 0:02:31.4]} 11.
e5 {[%clk 0:03:16.2]} 11... Ne4 {[%clk 0:02:18.3]} 12. Bb5+ {[%clk 0:03:16.5]}
12... Bd7 {[%clk 0:02:17.6]} 13. Rf1 {[%clk 0:03:17.5]} 13... f5 {[%clk
0:01:27.3]} 14. exf6 {[%clk 0:03:18.3]} 14... Nxf6 {[%clk 0:01:26.6]} 15. Qe2+
{[%clk 0:03:19.7]} 15... Qe7 {[%clk 0:01:08.5]} 16. Be3 {[%clk 0:02:58.5]} 16...
d4 {[%clk 0:00:49.4]} 17. Bxd4 {[%clk 0:02:45.3]} 17... Bxb5 {[%clk 0:00:46.7]}
18. Nxb5 {[%clk 0:02:41.9]} 18... Qxe2+ {[%clk 0:00:45.5]} 19. Kxe2 {[%clk
0:02:43.8]} 19... Kf7 {[%clk 0:00:36.1]} 20. Rac1 {[%clk 0:02:39.1]} 20... Re8+
{[%clk 0:00:35.8]} 21. Kd3 {[%clk 0:02:38.2]} 21... a6 {[%clk 0:00:35]} 22. Rc7+
{[%clk 0:02:37.2]} 22... Kg6 {[%clk 0:00:27.3]} 23. Nc3 {[%clk 0:02:31.8]} 23...
Re7 {[%clk 0:00:27.1]} 24. Rc8 {[%clk 0:02:28.7]} 24... Re8 {[%clk 0:00:22.7]}
25. Rxf6+ {[%clk 0:02:25.1]} 25... gxf6 {[%clk 0:00:23.7]} 26. Rxe8 {[%clk
0:02:26.1]} 1-0

[Event "*** Titled Tuesday Blitz"]
[Site "Chess.com"]
[Date "2019.06.04"]
[Round "8"]
[White "BillieKimbah"]
[Black "Zhuu96"]
[Result "1-0"]
[WhiteElo "2824"]
[BlackElo "2936"]
[TimeControl "180+2"]
[EndTime "14:47:13 PDT"]
[Termination "BillieKimbah won by resignation"]

1. c4 {[%clk 0:03:01.9]} 1... Nf6 {[%clk 0:03:00.8]} 2. Nc3 {[%clk 0:03:01.5]}
2... g6 {[%clk 0:03:02.4]} 3. g3 {[%clk 0:03:02.1]} 3... Bg7 {[%clk 0:03:03.7]}
4. Bg2 {[%clk 0:03:03.5]} 4... d6 {[%clk 0:03:03.9]} 5. d4 {[%clk 0:03:03.7]}
5... O-O {[%clk 0:03:04.6]} 6. Nf3 {[%clk 0:03:04.6]} 6... Nc6 {[%clk
0:03:06.3]} 7. O-O {[%clk 0:03:05.2]} 7... a6 {[%clk 0:03:06.3]} 8. b3 {[%clk
0:03:05.9]} 8... Rb8 {[%clk 0:03:06.7]} 9. d5 {[%clk 0:02:47.4]} 9... Na7 {[%clk
0:03:07.7]} 10. Be3 {[%clk 0:02:40]} 10... c5 {[%clk 0:03:07.9]} 11. dxc6 {[%clk
0:02:38.9]} 11... Nxc6 {[%clk 0:03:08.9]} 12. Rc1 {[%clk 0:02:37.6]} 12... Ng4
{[%clk 0:03:05]} 13. Bf4 {[%clk 0:02:35.9]} 13... Bf5 {[%clk 0:02:40.7]} 14. h3
{[%clk 0:02:28.9]} 14... Nf6 {[%clk 0:02:37]} 15. Qd2 {[%clk 0:02:15.2]} 15...
Qc8 {[%clk 0:02:27]} 16. g4 {[%clk 0:02:10.5]} 16... Ne4 {[%clk 0:02:28]} 17.
Nxe4 {[%clk 0:02:09.4]} 17... Bxe4 {[%clk 0:02:29.3]} 18. Bh6 {[%clk 0:02:07.7]}
18... Bxf3 {[%clk 0:02:22]} 19. exf3 {[%clk 0:02:03.9]} 19... Bxh6 {[%clk
0:02:20.5]} 20. Qxh6 {[%clk 0:02:05.8]} 20... e5 {[%clk 0:02:18.1]} 21. f4
{[%clk 0:02:00.2]} 21... Nd4 {[%clk 0:02:19.2]} 22. Rfe1 {[%clk 0:02:00.8]}
22... Re8 {[%clk 0:02:17.5]} 23. Bd5 {[%clk 0:01:58.1]} 23... Qd8 {[%clk
0:02:14.3]} 24. fxe5 {[%clk 0:01:41.7]} 24... dxe5 {[%clk 0:02:15]} 25. Re3
{[%clk 0:01:37.9]} 25... b5 {[%clk 0:02:12.7]} 26. Rce1 {[%clk 0:01:34.9]} 26...
Nc2 {[%clk 0:02:13.2]} 27. Bxf7+ {[%clk 0:01:31.4]} 27... Kxf7 {[%clk 0:01:51]}
28. Qxh7+ {[%clk 0:01:31.5]} 28... Kf6 {[%clk 0:01:48.1]} 29. Rf3+ {[%clk
0:01:26.8]} 29... Kg5 {[%clk 0:01:43.8]} 30. h4+ {[%clk 0:01:19.2]} 1-0

[Event "*** Titled Tuesday Blitz"]
[Site "Chess.com"]
[Date "2019.06.04"]
[Round "8"]
[White "pedro_gines"]
[Black "VeraNebolsina"]
[Result "1-0"]
[WhiteElo "2397"]
[BlackElo "2360"]
[TimeControl "180+2"]
[EndTime "14:47:18 PDT"]
[Termination "pedro_gines won by resignation"]

1. d4 {[%clk 0:03:01.9]} 1... Nf6 {[%clk 0:03:00.6]} 2. Nf3 {[%clk 0:03:03]}
2... g6 {[%clk 0:03:01.7]} 3. Bg5 {[%clk 0:03:02.4]} 3... Bg7 {[%clk 0:03:01.6]}
4. Nbd2 {[%clk 0:03:04]} 4... d6 {[%clk 0:02:48.9]} 5. c3 {[%clk 0:03:04.5]}
5... h6 {[%clk 0:02:47.4]} 6. Bh4 {[%clk 0:03:04.4]} 6... O-O {[%clk 0:02:41.2]}
7. e4 {[%clk 0:03:05]} 7... Nc6 {[%clk 0:02:29.8]} 8. Be2 {[%clk 0:03:05.4]}
8... Nh5 {[%clk 0:02:26.2]} 9. d5 {[%clk 0:02:56.5]} 9... Nb8 {[%clk 0:02:12.9]}
10. O-O {[%clk 0:02:56.8]} 10... Nf4 {[%clk 0:02:10.5]} 11. Bc4 {[%clk
0:02:56.8]} 11... Nd7 {[%clk 0:02:00]} 12. Bg3 {[%clk 0:02:56.6]} 12... Nh5
{[%clk 0:01:59.6]} 13. Bh4 {[%clk 0:02:55.1]} 13... g5 {[%clk 0:01:42.5]} 14.
Bg3 {[%clk 0:02:51.3]} 14... Nxg3 {[%clk 0:01:42.5]} 15. hxg3 {[%clk 0:02:53.2]}
15... a6 {[%clk 0:01:16.9]} 16. Nd4 {[%clk 0:02:48.9]} 16... Ne5 {[%clk
0:01:13.1]} 17. Be2 {[%clk 0:02:49.2]} 17... e6 {[%clk 0:01:08.6]} 18. f4 {[%clk
0:02:26.7]} 18... Ng6 {[%clk 0:01:09]} 19. dxe6 {[%clk 0:02:16.8]} 19... fxe6
{[%clk 0:01:08.8]} 20. Bc4 {[%clk 0:02:17.9]} 20... d5 {[%clk 0:00:59.9]} 21.
exd5 {[%clk 0:02:13.2]} 21... exd5 {[%clk 0:01:00.6]} 22. Bd3 {[%clk 0:02:14.3]}
22... Qd6 {[%clk 0:00:57.5]} 23. Qh5 {[%clk 0:02:08.3]} 23... Rf6 {[%clk
0:00:31.7]} 24. fxg5 {[%clk 0:02:07.2]} 1-0

[Event "*** Titled Tuesday Blitz"]
[Site "Chess.com"]
[Date "2019.06.04"]
[Round "8"]
[White "DivyaDeshmukh23"]
[Black "nitpicker"]
[Result "1-0"]
[WhiteElo "2384"]
[BlackElo "2197"]
[TimeControl "180+2"]
[EndTime "14:47:42 PDT"]
[Termination "DivyaDeshmukh23 won by resignation"]

1. e4 {[%clk 0:03:01.9]} 1... d5 {[%clk 0:03:00.3]} 2. exd5 {[%clk 0:03:02.8]}
2... Qxd5 {[%clk 0:03:01.2]} 3. Nc3 {[%clk 0:03:04.3]} 3... Qd8 {[%clk
0:03:02.1]} 4. Bc4 {[%clk 0:03:05.5]} 4... Nf6 {[%clk 0:03:01.5]} 5. d4 {[%clk
0:03:05.9]} 5... c6 {[%clk 0:03:01.7]} 6. Nf3 {[%clk 0:03:06.2]} 6... Bg4 {[%clk
0:03:00]} 7. Bxf7+ {[%clk 0:03:06.4]} 7... Kxf7 {[%clk 0:02:41.8]} 8. Ne5+
{[%clk 0:03:08.3]} 8... Kg8 {[%clk 0:02:28.4]} 9. Nxg4 {[%clk 0:03:10.2]} 9...
Nbd7 {[%clk 0:02:28.6]} 10. O-O {[%clk 0:03:09.8]} 10... g6 {[%clk 0:02:20]} 11.
Re1 {[%clk 0:03:04.7]} 11... Bg7 {[%clk 0:02:20]} 12. Bg5 {[%clk 0:02:51.4]}
12... h6 {[%clk 0:02:14.5]} 13. Bf4 {[%clk 0:02:51.8]} 13... Kh7 {[%clk
0:02:13.2]} 14. Ne5 {[%clk 0:02:48.9]} 14... Nxe5 {[%clk 0:02:10.4]} 15. Bxe5
{[%clk 0:02:50.8]} 15... Qd7 {[%clk 0:02:07.7]} 16. Qd3 {[%clk 0:02:47.8]} 16...
Rad8 {[%clk 0:02:05.7]} 17. Rad1 {[%clk 0:02:48.1]} 17... Qf5 {[%clk 0:02:00.1]}
18. Qe2 {[%clk 0:02:38.1]} 18... Rd7 {[%clk 0:01:59.7]} 19. h3 {[%clk
0:02:38.1]} 19... Rhd8 {[%clk 0:01:46.4]} 20. Rd3 {[%clk 0:02:37.8]} 20... g5
{[%clk 0:01:30.6]} 21. Rg3 {[%clk 0:02:29.8]} 21... Nd5 {[%clk 0:01:22.1]} 22.
Bxg7 {[%clk 0:02:26.4]} 22... Nf4 {[%clk 0:01:14.3]} 23. Qe5 {[%clk 0:02:16.5]}
23... Qg6 {[%clk 0:01:15.3]} 24. Bxh6 {[%clk 0:02:09.6]} 24... Kxh6 {[%clk
0:01:14.6]} 25. h4 {[%clk 0:02:08.8]} 25... Rxd4 {[%clk 0:01:05.7]} 26. hxg5+
{[%clk 0:02:08.9]} 26... Kh7 {[%clk 0:01:03.9]} 27. Rg4 {[%clk 0:02:02.9]} 27...
Ne6 {[%clk 0:00:41.2]} 28. Rxd4 {[%clk 0:02:01.9]} 28... Nxd4 {[%clk 0:00:39.9]}
29. Qxe7+ {[%clk 0:01:58.4]} 1-0

[Event "*** Titled Tuesday Blitz"]
[Site "Chess.com"]
[Date "2019.06.04"]
[Round "8"]
[White "IMDT02"]
[Black "Thee-Chessboy"]
[Result "1-0"]
[WhiteElo "2479"]
[BlackElo "2432"]
[TimeControl "180+2"]
[EndTime "14:47:58 PDT"]
[Termination "IMDT02 won by checkmate"]

1. d4 {[%clk 0:03:01.9]} 1... Nf6 {[%clk 0:02:59.8]} 2. c4 {[%clk 0:03:03.2]}
2... g6 {[%clk 0:03:01.1]} 3. Nc3 {[%clk 0:03:04.3]} 3... Bg7 {[%clk 0:03:03]}
4. e4 {[%clk 0:03:05.3]} 4... d6 {[%clk 0:03:04.3]} 5. f3 {[%clk 0:03:06.9]}
5... O-O {[%clk 0:03:04.3]} 6. Be3 {[%clk 0:03:08.4]} 6... e5 {[%clk 0:03:04.7]}
7. Nge2 {[%clk 0:03:08.9]} 7... Nbd7 {[%clk 0:02:53.7]} 8. Qd2 {[%clk
0:03:05.5]} 8... Re8 {[%clk 0:02:54.6]} 9. d5 {[%clk 0:02:53.9]} 9... Rf8 {[%clk
0:02:40.9]} 10. g4 {[%clk 0:02:53.9]} 10... Ne8 {[%clk 0:02:40.7]} 11. O-O-O
{[%clk 0:02:44.2]} 11... Nb6 {[%clk 0:02:30.5]} 12. Ng3 {[%clk 0:02:44.2]} 12...
Bd7 {[%clk 0:02:19.5]} 13. h4 {[%clk 0:02:42.2]} 13... c5 {[%clk 0:02:17.9]} 14.
h5 {[%clk 0:02:37.2]} 14... Na4 {[%clk 0:02:11.1]} 15. Nxa4 {[%clk 0:02:24.9]}
15... Bxa4 {[%clk 0:02:13]} 16. b3 {[%clk 0:02:26.8]} 16... Bd7 {[%clk
0:02:12.9]} 17. Qh2 {[%clk 0:02:28]} 17... g5 {[%clk 0:01:59.9]} 18. h6 {[%clk
0:02:28.8]} 18... Bh8 {[%clk 0:02:00.8]} 19. Qh5 {[%clk 0:02:24.8]} 19... f6
{[%clk 0:02:01.1]} 20. Nf5 {[%clk 0:02:25.5]} 20... b5 {[%clk 0:01:55.9]} 21.
cxb5 {[%clk 0:02:22.3]} 21... Rb8 {[%clk 0:01:51.4]} 22. Kb1 {[%clk 0:02:19.4]}
22... Bxb5 {[%clk 0:01:51.1]} 23. Bxb5 {[%clk 0:02:11.8]} 23... Rxb5 {[%clk
0:01:51.5]} 24. Rc1 {[%clk 0:02:13.3]} 24... a5 {[%clk 0:01:50.9]} 25. Rc4
{[%clk 0:02:14.2]} 25... Nc7 {[%clk 0:01:45.6]} 26. Rhc1 {[%clk 0:02:12.5]}
26... Na6 {[%clk 0:01:45.4]} 27. Bd2 {[%clk 0:02:04.6]} 27... Nb4 {[%clk
0:01:45.2]} 28. R1c3 {[%clk 0:01:57.1]} 28... Rf7 {[%clk 0:01:26.8]} 29. a3
{[%clk 0:01:56.3]} 29... Na6 {[%clk 0:01:26.8]} 30. Ka2 {[%clk 0:01:57.1]} 30...
Rfb7 {[%clk 0:01:25.9]} 31. Rd3 {[%clk 0:01:52.5]} 31... Nb8 {[%clk 0:01:16.3]}
32. Ra4 {[%clk 0:01:52.4]} 32... Na6 {[%clk 0:01:07.3]} 33. Rxa5 {[%clk
0:01:48.2]} 33... Rxa5 {[%clk 0:01:05.7]} 34. Bxa5 {[%clk 0:01:49.2]} 34... Qxa5
{[%clk 0:01:04.7]} 35. Qe8# {[%clk 0:01:49.1]} 1-0

[Event "*** Titled Tuesday Blitz"]
[Site "Chess.com"]
[Date "2019.06.04"]
[Round "8"]
[White "ChainsOfFantasia"]
[Black "Jahonas"]
[Result "1-0"]
[WhiteElo "2500"]
[BlackElo "2333"]
[TimeControl "180+2"]
[EndTime "14:48:00 PDT"]
[Termination "ChainsOfFantasia won by resignation"]

1. Nc3 {[%clk 0:03:01.9]} 1... Nf6 {[%clk 0:03:00.6]} 2. e4 {[%clk 0:03:02]}
2... e5 {[%clk 0:03:00.1]} 3. Nf3 {[%clk 0:03:00.7]} 3... Nc6 {[%clk 0:03:00.2]}
4. Bb5 {[%clk 0:03:01.4]} 4... d6 {[%clk 0:02:50.6]} 5. d4 {[%clk 0:03:01.3]}
5... exd4 {[%clk 0:02:51.1]} 6. Nxd4 {[%clk 0:03:02.5]} 6... Bd7 {[%clk
0:02:51.9]} 7. Bxc6 {[%clk 0:03:03]} 7... bxc6 {[%clk 0:02:52.3]} 8. O-O {[%clk
0:03:04.3]} 8... Be7 {[%clk 0:02:53.3]} 9. f4 {[%clk 0:03:01.8]} 9... c5 {[%clk
0:02:53.6]} 10. Nf3 {[%clk 0:03:01.4]} 10... O-O {[%clk 0:02:53.4]} 11. e5
{[%clk 0:02:54.4]} 11... dxe5 {[%clk 0:02:31.2]} 12. fxe5 {[%clk 0:02:46.3]}
12... Ne8 {[%clk 0:02:21]} 13. Be3 {[%clk 0:02:45.7]} 13... Rb8 {[%clk
0:02:15.5]} 14. b3 {[%clk 0:02:46.2]} 14... Qc8 {[%clk 0:01:35.2]} 15. Qe1
{[%clk 0:02:43.8]} 15... Be6 {[%clk 0:01:23.7]} 16. Qg3 {[%clk 0:02:42]} 16...
Rb4 {[%clk 0:01:12.4]} 17. h3 {[%clk 0:02:36.2]} 17... f5 {[%clk 0:00:57.4]} 18.
Ng5 {[%clk 0:02:12.2]} 18... h6 {[%clk 0:00:42.8]} 19. Nxe6 {[%clk 0:02:09.4]}
19... Qxe6 {[%clk 0:00:43.3]} 20. a3 {[%clk 0:02:10]} 20... Bh4 {[%clk
0:00:34.3]} 21. Qf3 {[%clk 0:02:09.5]} 21... Rb8 {[%clk 0:00:16.3]} 22. Bxc5
{[%clk 0:02:10.4]} 22... Rf7 {[%clk 0:00:16.3]} 23. Qd5 {[%clk 0:01:52.5]} 23...
Qxd5 {[%clk 0:00:10.5]} 24. Nxd5 {[%clk 0:01:54.4]} 24... c6 {[%clk 0:00:09.8]}
25. Nf4 {[%clk 0:01:51.8]} 25... Nc7 {[%clk 0:00:05.8]} 26. e6 {[%clk
0:01:49.1]} 1-0

[Event "*** Titled Tuesday Blitz"]
[Site "Chess.com"]
[Date "2019.06.04"]
[Round "8"]
[White "pultineviciuspaulius"]
[Black "GelmanAlexander"]
[Result "1-0"]
[WhiteElo "2725"]
[BlackElo "2599"]
[TimeControl "180+2"]
[EndTime "14:48:09 PDT"]
[Termination "pultineviciuspaulius won by resignation"]

1. b3 {[%clk 0:03:01.9]} 1... c5 {[%clk 0:02:58]} 2. Bb2 {[%clk 0:03:02.5]} 2...
Nf6 {[%clk 0:02:59.4]} 3. e3 {[%clk 0:03:03]} 3... e6 {[%clk 0:03:00.5]} 4. Nf3
{[%clk 0:03:02.8]} 4... Be7 {[%clk 0:03:00.8]} 5. d4 {[%clk 0:03:03.4]} 5... O-O
{[%clk 0:03:01.9]} 6. Be2 {[%clk 0:03:02.2]} 6... cxd4 {[%clk 0:02:55.8]} 7.
exd4 {[%clk 0:03:04.1]} 7... b6 {[%clk 0:02:54.2]} 8. O-O {[%clk 0:03:04.8]}
8... Bb7 {[%clk 0:02:55.6]} 9. c4 {[%clk 0:03:04.1]} 9... d6 {[%clk 0:02:56.5]}
10. Nc3 {[%clk 0:02:58.3]} 10... Nbd7 {[%clk 0:02:57.4]} 11. a4 {[%clk
0:02:55.5]} 11... a6 {[%clk 0:02:53.9]} 12. a5 {[%clk 0:02:43.1]} 12... bxa5
{[%clk 0:02:52.3]} 13. Qc2 {[%clk 0:02:41.8]} 13... Qb6 {[%clk 0:02:49.4]} 14.
Rfd1 {[%clk 0:02:29.5]} 14... Rfc8 {[%clk 0:02:47.4]} 15. Ra2 {[%clk 0:02:24.8]}
15... Nb8 {[%clk 0:02:33]} 16. d5 {[%clk 0:02:16.6]} 16... exd5 {[%clk
0:02:30.9]} 17. Nd4 {[%clk 0:02:15.5]} 17... dxc4 {[%clk 0:02:22.8]} 18. Bxc4
{[%clk 0:02:12.9]} 18... d5 {[%clk 0:02:17.9]} 19. Nf5 {[%clk 0:02:06.3]} 19...
Bf8 {[%clk 0:02:18.8]} 20. Bd3 {[%clk 0:02:01.2]} 20... Nc6 {[%clk 0:02:17.9]}
21. Nxd5 {[%clk 0:01:36.9]} 21... Nxd5 {[%clk 0:01:24.8]} 22. Nh6+ {[%clk
0:01:36.3]} 22... Kh8 {[%clk 0:01:25.1]} 23. Nxf7+ {[%clk 0:01:36.9]} 23... Kg8
{[%clk 0:01:26.6]} 24. Bxh7+ {[%clk 0:01:32.1]} 24... Kxf7 {[%clk 0:01:28.1]}
25. Qg6+ {[%clk 0:00:57.5]} 25... Ke7 {[%clk 0:01:29.1]} 26. Rxd5 {[%clk
0:00:54.6]} 26... Qb4 {[%clk 0:01:15.9]} 27. Ba3 {[%clk 0:00:51.3]} 27... Rd8
{[%clk 0:01:09.4]} 28. Re2+ {[%clk 0:00:51]} 1-0

[Event "*** Titled Tuesday Blitz"]
[Site "Chess.com"]
[Date "2019.06.04"]
[Round "8"]
[White "chorejason"]
[Black "jamengrand"]
[Result "0-1"]
[WhiteElo "2235"]
[BlackElo "2134"]
[TimeControl "180+2"]
[EndTime "14:48:17 PDT"]
[Termination "jamengrand won by resignation"]

1. e4 {[%clk 0:03:01.9]} 1... e6 {[%clk 0:03:00.5]} 2. d4 {[%clk 0:03:02.7]}
2... d5 {[%clk 0:03:01.6]} 3. Nd2 {[%clk 0:03:04.2]} 3... h6 {[%clk 0:03:02.4]}
4. Bd3 {[%clk 0:03:04.5]} 4... c5 {[%clk 0:03:01.9]} 5. c3 {[%clk 0:03:05]} 5...
cxd4 {[%clk 0:03:01.9]} 6. cxd4 {[%clk 0:03:05.4]} 6... Nc6 {[%clk 0:03:02.9]}
7. Ne2 {[%clk 0:03:06.1]} 7... dxe4 {[%clk 0:02:57.2]} 8. Nxe4 {[%clk 0:03:04]}
8... Be7 {[%clk 0:02:49.1]} 9. O-O {[%clk 0:03:04.9]} 9... Nf6 {[%clk
0:02:49.9]} 10. N2c3 {[%clk 0:03:02.4]} 10... Nxd4 {[%clk 0:02:45.1]} 11. Be3
{[%clk 0:03:00.1]} 11... Nf5 {[%clk 0:02:44.3]} 12. Nxf6+ {[%clk 0:02:54.5]}
12... Bxf6 {[%clk 0:02:44.9]} 13. Bc5 {[%clk 0:02:26.3]} 13... Be7 {[%clk
0:02:28.6]} 14. Bxe7 {[%clk 0:02:03.5]} 14... Nxe7 {[%clk 0:02:28.4]} 15. Qf3
{[%clk 0:01:51.1]} 15... O-O {[%clk 0:02:00.4]} 16. Rfd1 {[%clk 0:01:50.4]}
16... Qa5 {[%clk 0:02:00.1]} 17. Ne4 {[%clk 0:01:36.6]} 17... Ng6 {[%clk
0:01:52.6]} 18. Qg3 {[%clk 0:01:29]} 18... Qe5 {[%clk 0:01:50.6]} 19. f4 {[%clk
0:01:26.6]} 19... Qxf4 {[%clk 0:01:48.4]} 20. Qe1 {[%clk 0:01:26.3]} 20... b6
{[%clk 0:01:42.4]} 21. g3 {[%clk 0:00:35.7]} 21... Qe5 {[%clk 0:01:27.7]} 22.
Qf2 {[%clk 0:00:22.6]} 22... Bb7 {[%clk 0:01:26.3]} 23. Nd6 {[%clk 0:00:22.9]}
23... Qxd6 {[%clk 0:01:20.5]} 24. Bxg6 {[%clk 0:00:24.3]} 24... Qc6 {[%clk
0:01:21.8]} 25. Kf1 {[%clk 0:00:21.4]} 25... fxg6 {[%clk 0:01:21.9]} 0-1

[Event "*** Titled Tuesday Blitz"]
[Site "Chess.com"]
[Date "2019.06.04"]
[Round "8"]
[White "WPWPWP-2015"]
[Black "nocnypako"]
[Result "0-1"]
[WhiteElo "2431"]
[BlackElo "2564"]
[TimeControl "180+2"]
[EndTime "14:48:22 PDT"]
[Termination "nocnypako won by checkmate"]

1. e4 {[%clk 0:03:01.6]} 1... c5 {[%clk 0:02:55.4]} 2. Nf3 {[%clk 0:03:02]} 2...
d6 {[%clk 0:02:46.6]} 3. d4 {[%clk 0:02:59.4]} 3... cxd4 {[%clk 0:02:45.5]} 4.
Nxd4 {[%clk 0:03:00.4]} 4... Nf6 {[%clk 0:02:47.4]} 5. Nc3 {[%clk 0:03:00.9]}
5... a6 {[%clk 0:02:47.6]} 6. h3 {[%clk 0:03:00.9]} 6... e6 {[%clk 0:02:47.1]}
7. Be3 {[%clk 0:03:00.8]} 7... d5 {[%clk 0:02:46.6]} 8. exd5 {[%clk 0:02:56]}
8... Nxd5 {[%clk 0:02:48.5]} 9. Nxd5 {[%clk 0:02:54.8]} 9... Qxd5 {[%clk
0:02:48.7]} 10. Qd2 {[%clk 0:02:44.4]} 10... Nc6 {[%clk 0:02:47.6]} 11. Nxc6
{[%clk 0:02:39.8]} 11... Qxc6 {[%clk 0:02:49.5]} 12. O-O-O {[%clk 0:02:38.7]}
12... Be7 {[%clk 0:02:49.3]} 13. Bd3 {[%clk 0:02:34.5]} 13... O-O {[%clk
0:02:46]} 14. Bd4 {[%clk 0:02:34.6]} 14... Qd5 {[%clk 0:02:39]} 15. Kb1 {[%clk
0:02:33.1]} 15... Kh8 {[%clk 0:02:32.7]} 16. Be2 {[%clk 0:02:26.8]} 16... Qc6
{[%clk 0:02:23.8]} 17. Bf3 {[%clk 0:02:26.8]} 17... Qc7 {[%clk 0:02:22.7]} 18.
Qe3 {[%clk 0:02:24.7]} 18... Bd7 {[%clk 0:02:13.8]} 19. Rd3 {[%clk 0:01:45.4]}
19... Bc6 {[%clk 0:02:07.1]} 20. Bb6 {[%clk 0:01:34.4]} 20... Qc8 {[%clk
0:02:08.4]} 21. Rhd1 {[%clk 0:01:29.5]} 21... Bxf3 {[%clk 0:02:07.8]} 22. Qxf3
{[%clk 0:01:30.5]} 22... Bf6 {[%clk 0:01:59.9]} 23. Rd7 {[%clk 0:01:26]} 23...
Qc4 {[%clk 0:01:54]} 24. Rxb7 {[%clk 0:01:16.1]} 24... Rac8 {[%clk 0:01:54.5]}
25. c3 {[%clk 0:00:43.6]} 25... Rb8 {[%clk 0:01:54.5]} 26. Bd4 {[%clk
0:00:31.6]} 26... e5 {[%clk 0:01:47.8]} 27. Be3 {[%clk 0:00:15.6]} 27... e4
{[%clk 0:01:49.4]} 28. Rxb8 {[%clk 0:00:15.4]} 28... Rxb8 {[%clk 0:01:51.3]} 29.
Qf4 {[%clk 0:00:15.9]} 29... Rxb2+ {[%clk 0:01:48.8]} 30. Ka1 {[%clk 0:00:14.1]}
30... Qxa2# {[%clk 0:01:49]} 0-1

[Event "*** Titled Tuesday Blitz"]
[Site "Chess.com"]
[Date "2019.06.04"]
[Round "8"]
[White "BillForster"]
[Black "chesstatour"]
[Result "0-1"]
[WhiteElo "1757"]
[BlackElo "2037"]
[TimeControl "180+2"]
[EndTime "14:48:27 PDT"]
[Termination "chesstatour won by resignation"]

1. d4 {[%clk 0:03:01.9]} 1... Nf6 {[%clk 0:02:59.9]} 2. c4 {[%clk 0:03:01.6]}
2... d6 {[%clk 0:03:00.7]} 3. Nc3 {[%clk 0:02:55.5]} 3... g6 {[%clk 0:03:00.9]}
4. e4 {[%clk 0:02:54.5]} 4... Bg7 {[%clk 0:02:57.4]} 5. Bd3 {[%clk 0:02:55]}
5... O-O {[%clk 0:02:58.2]} 6. Nge2 {[%clk 0:02:54.5]} 6... c5 {[%clk
0:02:59.3]} 7. d5 {[%clk 0:02:54.3]} 7... e6 {[%clk 0:03:00.6]} 8. O-O {[%clk
0:02:52]} 8... e5 {[%clk 0:02:37.1]} 9. f4 {[%clk 0:02:40.6]} 9... exf4 {[%clk
0:02:35.3]} 10. Nxf4 {[%clk 0:02:32.7]} 10... Re8 {[%clk 0:02:32.8]} 11. Bd2
{[%clk 0:02:25.5]} 11... Nbd7 {[%clk 0:02:31.7]} 12. Qc2 {[%clk 0:02:13.2]}
12... Ne5 {[%clk 0:02:30.6]} 13. Rae1 {[%clk 0:02:13.4]} 13... a6 {[%clk
0:02:14.5]} 14. Kh1 {[%clk 0:02:06.4]} 14... Bd7 {[%clk 0:02:10.1]} 15. Rf2
{[%clk 0:01:57.9]} 15... Nfg4 {[%clk 0:02:00.1]} 16. Rfe2 {[%clk 0:01:45.7]}
16... Rc8 {[%clk 0:00:59.9]} 17. Nh3 {[%clk 0:01:19.2]} 17... b5 {[%clk
0:00:49.4]} 18. b3 {[%clk 0:01:04.1]} 18... b4 {[%clk 0:00:33.1]} 19. Nd1 {[%clk
0:01:03.7]} 19... a5 {[%clk 0:00:34]} 20. Ne3 {[%clk 0:00:58.5]} 20... Nxd3
{[%clk 0:00:30.2]} 21. Qxd3 {[%clk 0:00:57.7]} 21... Ne5 {[%clk 0:00:31.2]} 22.
Nf4 {[%clk 0:00:48.2]} 22... Nxd3 {[%clk 0:00:30.4]} 0-1